fUSD/lending_fUSD_20251001
["ID","MTS","AMOUNT","RATE_DAILY","PERIOD"]
[388686728,1759318274892,-505.24075526,0.00022465,2]
[388686729,1759318274902,-500.0,0.00022465,2]
[388686730,1759318274911,-2403.04,0.00022465,2]
[388686731,1759318274920,-824.01,0.00022465,2]
[388686732,1759318274930,-503.60808979,0.00022465,2]
[388686733,1759318274940,-500.0,0.00022465,2]
[388686734,1759318274949,-500.0,0.00022465,2]
[388686735,1759318274959,-3512.45,0.00022465,2]
[388686736,1759318274968,-500.0,0.00022465,2]
[388686737,1759318274978,-2800.99,0.00022465,2]
[388686738,1759318274987,-500.0,0.00022465,2]
[388686739,1759318274997,-500.0,0.00022465,2]
[388686740,1759318275006,-681.91,0.00022465,2]
[388686741,1759318275016,-839.73,0.00022465,2]
[388686742,1759318275025,-1073.82,0.00022465,2]
[388686743,1759318275034,-801.63,0.00022465,2]
[388686744,1759318275043,-1935.03,0.00022465,2]
[388686745,1759318275053,-2976.65,0.00022465,2]
[388686746,1759318275062,-556.11,0.00022465,2]
[388686747,1759318275072,-1662.05,0.00022465,2]
[388686748,1759318275082,-522.14,0.00022465,2]
[388686749,1759318275091,-500.0,0.00022465,2]
[388686750,1759318275101,-2204.69,0.00022465,2]
[388686751,1759318275110,-500.0,0.00022465,2]
[388686752,1759318275120,-500.0,0.00022465,2]
[388686753,1759318275130,-1486.33,0.00022465,2]
[388686754,1759318275139,-2224.55,0.00022465,2]
[388686755,1759318275149,-551.8,0.00022465,2]
[388686756,1759318275158,-2883.77,0.00022465,2]
[388686757,1759318275168,-500.0,0.00022465,2]
[388686758,1759318275177,-500.0,0.00022465,2]
[388686759,1759318275187,-500.0,0.00022465,2]
[388686760,1759318275196,-818.65,0.00022465,2]
[388686761,1759318275207,-500.0,0.00022465,2]
[388686762,1759318275216,-1355.36,0.00022465,2]
[388686763,1759318275225,-3470.71,0.00022465,2]
[388686764,1759318275235,-1173.63,0.00022465,2]
[388686765,1759318275244,-1307.25,0.00022465,2]
[388686766,1759318275253,-548.03,0.00022465,2]
[388686767,1759318275583,-500.0,0.00022465,2]
[388686768,1759318275594,-1805.48,0.00022465,2]
[388686769,1759318275604,-2255.79,0.00022465,2]
[388686770,1759318275613,-500.0,0.00022465,2]
[388686771,1759318275622,-2282.67,0.00022465,2]
[388686772,1759318275632,-1465.08,0.00022465,2]
[388686773,1759318275642,-1720.52,0.00022465,2]
[388686774,1759318275651,-500.0,0.00022465,2]
[388686775,1759318275661,-500.0,0.00022465,2]
[388686776,1759318275670,-1827.48,0.00022465,2]
[388686777,1759318275679,-1042.27,0.00022465,2]
[388686778,1759318275688,-1993.38,0.00022465,2]
[388686779,1759318275698,-1959.98,0.00022465,2]
[388686780,1759318275707,-2299.02,0.00022465,2]
[388686781,1759318275717,-603.9,0.00022465,2]
[388686782,1759318275726,-2400.92,0.00022465,2]
[388686783,1759318275735,-1775.5,0.00022465,2]
[388686784,1759318275744,-500.0,0.00022465,2]
[388686785,1759318275756,-500.0,0.00022465,2]
[388686786,1759318275771,-500.0,0.00022465,2]
[388686787,1759318275780,-500.0,0.00022465,2]
[388686788,1759318275790,-1190.19,0.00022465,2]
[388686789,1759318275799,-764.15,0.00022465,2]
[388686790,1759318275810,-2672.07,0.00022465,2]
[388686791,1759318275819,-2607.08,0.00022465,2]
[388686792,1759318275829,-3315.74,0.00022465,2]
[388686793,1759318275838,-500.0,0.00022465,2]
[388686794,1759318275848,-2394.04,0.00022465,2]
[388686795,1759318275857,-723.17,0.00022465,2]
[388686796,1759318275866,-740.89,0.00022465,2]
[388686797,1759318275877,-545.65,0.00022465,2]
[388686798,1759318275887,-500.0,0.00022465,2]
[388686799,1759318275896,-500.0,0.00022465,2]
[388686800,1759318275906,-811.22,0.00022465,2]
[388686801,1759318275916,-500.0,0.00022465,2]
[388686802,1759318275927,-2463.11,0.00022465,2]
[388686803,1759318275936,-2985.27,0.00022465,2]
[388686804,1759318275946,-500.0,0.00022465,2]
[388686805,1759318275955,-500.0,0.00022465,2]
[388686806,1759318275965,-2160.59,0.00022465,2]
[388686807,1759318275974,-1972.94,0.00022465,2]
[388686808,1759318275983,-500.0,0.00022465,2]
[388686809,1759318275993,-500.0,0.00022465,2]
[388686810,1759318276002,-3137.03,0.00022465,2]
[388686811,1759318276012,-1138.69,0.00022465,2]
[388686812,1759318276021,-613.26,0.00022465,2]
[388686813,1759318276031,-500.0,0.00022465,2]
[388686814,1759318276040,-500.0,0.00022465,2]
[388686815,1759318276050,-500.0,0.00022465,2]
[388686816,1759318276059,-570.27,0.00022465,2]
[388686817,1759318276068,-500.0,0.00022465,2]
[388686818,1759318276078,-759.26,0.00022465,2]
[388686819,1759318276087,-500.53,0.00022465,2]
[388686820,1759318276097,-2909.57,0.00022465,2]
[388686821,1759318276106,-1913.76,0.00022465,2]
[388686822,1759318276115,-500.0,0.00022465,2]
[388686823,1759318276124,-500.0,0.00022465,2]
[388686824,1759318276134,-1330.99,0.00022465,2]
[388686825,1759318276144,-507.85,0.00022465,2]
[388686826,1759318276153,-3074.71,0.00022465,2]
[388686827,1759318276163,-2761.34,0.00022465,2]
[388686828,1759318276172,-502.59,0.00022465,2]
[388686829,1759318276181,-967.76,0.00022465,2]
[388686830,1759318276191,-1065.11,0.00022465,2]
[388686831,1759318276201,-500.0,0.00022465,2]
[388686832,1759318276210,-1250.26,0.00022465,2]
[388686833,1759318276220,-500.1,0.00022465,2]
[388686834,1759318276230,-500.0,0.00022465,2]
[388686835,1759318276240,-1288.33,0.00022465,2]
[388686836,1759318276250,-1214.06,0.00022465,2]
[388686837,1759318276259,-2615.28,0.00022465,2]
[388686838,1759318276270,-500.0,0.00022465,2]
[388686839,1759318276280,-500.0,0.00022465,2]
[388686840,1759318276291,-500.0,0.00022465,2]
[388686841,1759318276301,-504.88,0.00022465,2]
[388686842,1759318276311,-939.32,0.00022465,2]
[388686843,1759318276321,-500.0,0.00022465,2]
[388686844,1759318276331,-2080.31,0.00022465,2]
[388686845,1759318276341,-1750.41,0.00022465,2]
[388686846,1759318276352,-2474.39,0.00022465,2]
[388686847,1759318276361,-1918.34,0.00022465,2]
[388686848,1759318276371,-500.0,0.00022465,2]
[388686849,1759318276382,-562.13,0.00022465,2]
[388686850,1759318276392,-2416.38,0.00022465,2]
[388686851,1759318276402,-2763.78,0.00022465,2]
[388686852,1759318276412,-500.0,0.00022465,2]
[388686853,1759318276422,-659.04,0.00022465,2]
[388686854,1759318276431,-554.56,0.00022465,2]
[388686855,1759318276443,-500.0,0.00022465,2]
[388686856,1759318276453,-1321.43,0.00022465,2]
[388686857,1759318276463,-1741.06,0.00022465,2]
[388686858,1759318276473,-2796.46,0.00022465,2]
[388686859,1759318276483,-500.0,0.00022465,2]
[388686860,1759318276492,-1806.62,0.00022465,2]
[388686861,1759318276502,-2186.49,0.00022465,2]
[388686862,1759318276512,-2645.03,0.00022465,2]
[388686863,1759318276522,-605.59,0.00022465,2]
[388686864,1759318276532,-1663.73,0.00022465,2]
[388686865,1759318276542,-500.0,0.00022465,2]
[388686866,1759318276552,-500.0,0.00022465,2]
[388686867,1759318276562,-883.07,0.00022465,2]
[388686868,1759318276572,-1556.42,0.00022465,2]
[388686869,1759318276581,-500.0,0.00022465,2]
[388686870,1759318276591,-500.0,0.00022465,2]
[388686871,1759318276601,-2547.88,0.00022465,2]
[388686872,1759318276611,-1362.45,0.00022465,2]
[388686873,1759318276621,-500.0,0.00022465,2]
[388686874,1759318276631,-582.11,0.00022465,2]
[388686875,1759318276641,-1716.74,0.00022465,2]
[388686876,1759318276653,-664.98,0.00022465,2]
[388686877,1759318276663,-706.56,0.00022465,2]
[388686878,1759318276674,-995.96,0.00022465,2]
[388686879,1759318276684,-500.0,0.00022465,2]
[388686880,1759318276695,-500.0,0.00022465,2]
[388686881,1759318276704,-500.0,0.00022465,2]
[388686882,1759318276715,-500.0,0.00022465,2]
[388686883,1759318276725,-2709.59,0.00022465,2]
[388686884,1759318276735,-1622.51,0.00022465,2]
[388686885,1759318276745,-2298.31,0.00022465,2]
[388686886,1759318276754,-500.0,0.00022465,2]
[388686887,1759318276764,-500.0,0.00022465,2]
[388686888,1759318276776,-598.17,0.00022465,2]
[388686889,1759318276785,-500.0,0.00022465,2]
[388686890,1759318276796,-1220.41,0.00022465,2]
[388686891,1759318276807,-500.0,0.00022465,2]
[388686892,1759318276823,-500.0,0.00022465,2]
[388686893,1759318276833,-1392.28,0.00022465,2]
[388686894,1759318276842,-543.79,0.00022465,2]
[388686895,1759318276852,-500.0,0.00022465,2]
[388686896,1759318276862,-1314.45,0.00022465,2]
[388686897,1759318276872,-617.43,0.00022465,2]
[388686898,1759318276882,-500.0,0.00022465,2]
[388686899,1759318276892,-500.0,0.00022465,2]
[388686900,1759318276902,-500.0,0.00022465,2]
[388686901,1759318276912,-500.0,0.00022465,2]
[388686902,1759318276921,-419.28898524,0.00022465,2]
[388686903,1759318276930,-2381.26,0.00022465,2]
[388686904,1759318276940,-1016.21,0.00022465,2]
[388686905,1759318276949,-500.0,0.00022465,2]
[388686906,1759318276959,-500.0,0.00022465,2]
[388686907,1759318276968,-2807.46,0.00022465,2]
[388686908,1759318276978,-1384.02,0.00022465,2]
[388686909,1759318276988,-834.19,0.00022465,2]
[388686910,1759318276998,-2140.4,0.00022465,2]
[388686911,1759318277009,-625.52,0.00022465,2]
[388686912,1759318277019,-798.88,0.00022465,2]
[388686913,1759318277029,-500.0,0.00022465,2]
[388686914,1759318277038,-3014.81,0.00022465,2]
[388686915,1759318277047,-3283.53,0.00022465,2]
[388686916,1759318277056,-500.0,0.00022465,2]
[388686917,1759318277066,-3032.47,0.00022465,2]
[388686918,1759318277076,-1118.38,0.00022465,2]
[388686919,1759318277085,-1245.13,0.00022465,2]
[388686920,1759318277095,-2590.98,0.00022465,2]
[388686921,1759318277105,-500.0,0.00022465,2]
[388686922,1759318277114,-500.0,0.00022465,2]
[388686923,1759318277124,-281.77301485,0.00022465,2]
[388686924,1759318277133,-1286.37,0.00022465,2]
[388686925,1759318277142,-1524.36,0.00022465,2]
[388686926,1759318277152,-500.0,0.00022465,2]
[388686927,1759318277161,-1855.05,0.00022465,2]
[388686928,1759318277171,-500.0,0.00022465,2]
[388686929,1759318277180,-2291.61,0.00022465,2]
[388686930,1759318277190,-500.0,0.00022465,2]
[388686931,1759318277200,-500.0,0.00022465,2]
[388686932,1759318277209,-725.26,0.00022465,2]
[388686933,1759318277218,-608.83,0.00022465,2]
[388686934,1759318277228,-8110.25,0.00022465,2]
[388686935,1759318277237,-2121.63,0.00022465,2]
[388686936,1759318277247,-619.14,0.00022465,2]
[388686937,1759318277256,-500.0,0.00022465,2]
[388686938,1759318277265,-500.0,0.00022465,2]
[388686939,1759318277275,-1974.76,0.00022465,2]
[388686940,1759318277284,-500.0,0.00022465,2]
[388686941,1759318277294,-1662.34,0.00022465,2]
[388686942,1759318277303,-2512.38,0.00022465,2]
[388686943,1759318277313,-500.0,0.00022465,2]
[388686944,1759318277323,-6729.69,0.00022465,2]
[388686945,1759318277332,-1179.44,0.00022465,2]
[388686946,1759318277341,-514.52,0.00022465,2]
[388686947,1759318277351,-500.0,0.00022465,2]
[388686948,1759318277361,-500.0,0.00022465,2]
[388686949,1759318277371,-500.0,0.00022465,2]
[388686950,1759318277381,-1839.25,0.00022465,2]
[388686951,1759318277391,-1971.42,0.00022465,2]
[388686952,1759318277401,-1725.02,0.00022465,2]
[388686953,1759318277411,-1043.5,0.00022465,2]
[388686954,1759318277421,-500.0,0.00022465,2]
[388686955,1759318277430,-3426.71,0.00022465,2]
[388686956,1759318277440,-500.0,0.00022465,2]
[388686957,1759318277449,-500.0,0.00022465,2]
[388686958,1759318277459,-2858.47,0.00022465,2]
[388686959,1759318277469,-500.0,0.00022465,2]
[388686960,1759318277478,-500.0,0.00022465,2]
[388686961,1759318277488,-500.0,0.00022465,2]
[388686962,1759318277498,-903.56,0.00022465,2]
[388686963,1759318277510,-500.0,0.00022465,2]
[388686964,1759318277521,-1045.19,0.00022465,2]
[388686965,1759318277530,-1045.19,0.00022465,2]
[388686966,1759318277541,-500.0,0.00022465,2]
[388686967,1759318277550,-500.0,0.00022465,2]
[388686968,1759318277560,-639.17,0.00022465,2]
[388686969,1759318277569,-1766.47,0.00022465,2]
[388686970,1759318277579,-1687.57,0.00022465,2]
[388686971,1759318277589,-2788.26,0.00022465,2]
[388686972,1759318277599,-500.0,0.00022465,2]
[388686973,1759318277609,-611.58,0.00022465,2]
[388686974,1759318277620,-650.64,0.00022465,2]
[388686975,1759318277631,-500.0,0.00022465,2]
[388686976,1759318277641,-3676.98,0.00022465,2]
[388686977,1759318277651,-785.73,0.00022465,2]
[388686978,1759318277661,-500.0,0.00022465,2]
[388686979,1759318277674,-638.83,0.00022465,2]
[388686980,1759318277683,-2107.49,0.00022465,2]
[388686981,1759318277693,-500.0,0.00022465,2]
[388686982,1759318277703,-1377.53,0.00022465,2]
[388686983,1759318277713,-500.0,0.00022465,2]
[388686984,1759318277723,-500.0,0.00022465,2]
[388686985,1759318277732,-500.0,0.00022465,2]
[388686986,1759318277741,-1795.14,0.00022465,2]
[388686987,1759318277751,-717.53,0.00022465,2]
[388686988,1759318277761,-2897.73,0.00022465,2]
[388686989,1759318277772,-2954.17,0.00022465,2]
[388686990,1759318277782,-1525.93,0.00022465,2]
[388686991,1759318277791,-500.0,0.00022465,2]
[388686992,1759318277800,-1202.33,0.00022465,2]
[388686993,1759318277811,-500.0,0.00022465,2]
[388686994,1759318277821,-5763.86,0.00022465,2]
[388686995,1759318277830,-500.0,0.00022465,2]
[388686996,1759318277839,-2409.35,0.00022465,2]
[388686997,1759318277849,-1167.02,0.00022465,2]
[388686998,1759318277860,-2408.01,0.00022465,2]
[388686999,1759318277869,-27327.57,0.00022465,2]
[388687000,1759318277879,-859.67,0.00022465,2]
[388687001,1759318277888,-289.0375516,0.00022465,2]
[388687002,1759318277898,-1062.04,0.00022465,2]
[388687003,1759318277907,-500.0,0.00022465,2]
[388687004,1759318277917,-822.58,0.00022465,2]
[388687005,1759318277927,-594.96,0.00022465,2]
[388687006,1759318277937,-1088.08,0.00022465,2]
[388687007,1759318278030,-4666.64,0.00022465,2]
[388687008,1759318278040,-500.0,0.00022465,2]
[388687009,1759318278049,-3878.74,0.00022465,2]
[388687010,1759318278058,-3002.64,0.00022465,2]
[388687011,1759318278067,-500.0,0.00022465,2]
[388687012,1759318278076,-500.0,0.00022465,2]
[388687013,1759318278085,-500.0,0.00022465,2]
[388687014,1759318278095,-2595.6,0.00022465,2]
[388687015,1759318278104,-917.22,0.00022465,2]
[388687016,1759318278113,-500.0,0.00022465,2]
[388687017,1759318278123,-500.0,0.00022465,2]
[388687018,1759318278132,-500.0,0.00022465,2]
[388687019,1759318278142,-500.0,0.00022465,2]
[388687020,1759318278151,-500.0,0.00022465,2]
[388687021,1759318278161,-3287.18,0.00022465,2]
[388687022,1759318278171,-3093.24,0.00022465,2]
[388687023,1759318278181,-500.0,0.00022465,2]
[388687024,1759318278190,-1307.4,0.00022465,2]
[388687025,1759318278199,-174.27799776,0.00022465,2]
[388687026,1759318278209,-1353.79,0.00022465,2]
[388687027,1759318278218,-2342.55,0.00022465,2]
[388687028,1759318278229,-6731.9,0.00022465,2]
[388687029,1759318278239,-683.93,0.00022465,2]
[388687030,1759318278248,-5080.8,0.00022465,2]
[388687031,1759318278258,-19796.17,0.00022465,2]
[388687032,1759318278268,-500.0,0.00022465,2]
[388687033,1759318278278,-3278.44,0.00022465,2]
[388687034,1759318278287,-2941.33,0.00022465,2]
[388687035,1759318278296,-500.0,0.00022465,2]
[388687036,1759318278306,-981.54,0.00022465,2]
[388687037,1759318278315,-500.0,0.00022465,2]
[388687038,1759318278325,-1842.07,0.00022465,2]
[388687039,1759318278334,-3114.55,0.00022465,2]
[388687040,1759318278344,-5302.08,0.00022465,2]
[388687041,1759318278353,-3470.88,0.00022465,2]
[388687042,1759318278362,-500.0,0.00022465,2]
[388687043,1759318278372,-500.0,0.00022465,2]
[388687044,1759318278381,-500.0,0.00022465,2]
[388687045,1759318278390,-2724.11,0.00022465,2]
[388687046,1759318278400,-500.0,0.00022465,2]
[388687047,1759318278409,-1952.47,0.00022465,2]
[388687048,1759318278419,-500.0,0.00022465,2]
[388687049,1759318278428,-500.0,0.00022465,2]
[388687050,1759318278438,-500.0,0.00022465,2]
[388687051,1759318278448,-2491.77,0.00022465,2]
[388687052,1759318278457,-2927.52,0.00022465,2]
[388687053,1759318278467,-2749.05,0.00022465,2]
[388687054,1759318278487,-500.0,0.00022465,2]
[388687055,1759318278497,-1267.59,0.00022465,2]
[388687056,1759318278508,-2323.33,0.00022465,2]
[388687057,1759318278518,-500.0,0.00022465,2]
[388687058,1759318278527,-500.0,0.00022465,2]
[388687059,1759318278536,-2170.52,0.00022465,2]
[388687060,1759318278546,-500.0,0.00022465,2]
[388687061,1759318278557,-3028.74,0.00022465,2]
[388687062,1759318278566,-2598.58,0.00022465,2]
[388687063,1759318278576,-611.55,0.00022465,2]
[388687064,1759318278585,-1970.42,0.00022465,2]
[388687065,1759318278595,-3702.49,0.00022465,2]
[388687066,1759318278606,-500.0,0.00022465,2]
[388687067,1759318278616,-4169.0,0.00022465,2]
[388687068,1759318278626,-589.28,0.00022465,2]
[388687069,1759318278637,-2067.73,0.00022465,2]
[388687070,1759318278646,-602.08,0.00022465,2]
[388687071,1759318278656,-500.0,0.00022465,2]
[388687072,1759318278666,-500.0,0.00022465,2]
[388687073,1759318278675,-500.0,0.00022465,2]
[388687074,1759318278687,-1972.82,0.00022465,2]
[388687075,1759318278697,-2041.8,0.00022465,2]
[388687076,1759318278706,-500.0,0.00022465,2]
[388687077,1759318278716,-500.0,0.00022465,2]
[388687078,1759318278727,-3889.06,0.00022465,2]
[388687079,1759318278738,-637.96,0.00022465,2]
[388687080,1759318278747,-14337.18,0.00022465,2]
[388687081,1759318278757,-2072.71,0.00022465,2]
[388687082,1759318278771,-3256.79,0.00022465,2]
[388687083,1759318278780,-500.0,0.00022465,2]
[388687084,1759318278790,-500.0,0.00022465,2]
[388687085,1759318278798,-9724.21,0.00022465,2]
[388687086,1759318278807,-500.0,0.00022465,2]
[388687087,1759318278817,-2760.87,0.00022465,2]
[388687088,1759318278826,-1559.77,0.00022465,2]
[388687089,1759318278837,-765.51,0.00022465,2]
[388687090,1759318278846,-1207.01,0.00022465,2]
[388687091,1759318278859,-9471.46,0.00022465,2]
[388687092,1759318278868,-500.0,0.00022465,2]
[388687093,1759318278878,-2440.13,0.00022465,2]
[388687094,1759318278887,-500.0,0.00022465,2]
[388687095,1759318278896,-1036.33,0.00022465,2]
[388687096,1759318278906,-2953.71,0.00022465,2]
[388687097,1759318278915,-3119.28,0.00022465,2]
[388687098,1759318278925,-500.0,0.00022465,2]
[388687099,1759318278934,-431.30648573,0.00022465,2]
[388687100,1759318278944,-3484.56,0.00022465,2]
[388687101,1759318278953,-3253.36,0.00022465,2]
[388687102,1759318278962,-1041.2,0.00022465,2]
[388687103,1759318278972,-500.0,0.00022465,2]
[388687104,1759318278982,-1192.28,0.00022465,2]
[388687105,1759318278991,-763.94,0.00022465,2]
[388687106,1759318279000,-500.0,0.00022465,2]
[388687107,1759318279009,-763.94,0.00022465,2]
[388687108,1759318279019,-1601.06,0.00022465,2]
[388687109,1759318279028,-500.0,0.00022465,2]
[388687110,1759318279038,-922.052687,0.00022465,2]
[388687111,1759318279047,-1102.43,0.00022465,2]
[388687112,1759318279056,-3319.12,0.00022465,2]
[388687113,1759318279066,-2272.53,0.00022465,2]
[388687114,1759318279076,-5120.47,0.00022465,2]
[388687115,1759318279085,-2364.85,0.00022465,2]
[388687116,1759318279095,-1895.07,0.00022465,2]
[388687117,1759318279104,-561.06,0.00022465,2]
[388687118,1759318279119,-3990.52,0.00022465,2]
[388687119,1759318279128,-2364.12,0.00022465,2]
[388687120,1759318279138,-500.0,0.00022465,2]
[388687121,1759318279147,-989.21,0.00022465,2]
[388687122,1759318279156,-4177.95,0.00022465,2]
[388687123,1759318279166,-5467.35,0.00022465,2]
[388687124,1759318279175,-4405.65,0.00022465,2]
[388687125,1759318279185,-1594.52,0.00022465,2]
[388687126,1759318279194,-1163.41,0.00022465,2]
[388687127,1759318279204,-6690.69,0.00022465,2]
[388687128,1759318279214,-4338.36,0.00022465,2]
[388687129,1759318279224,-500.0,0.00022465,2]
[388687130,1759318279234,-3058.13,0.00022465,2]
[388687131,1759318279243,-3563.65,0.00022465,2]
[388687132,1759318279252,-1079.44,0.00022465,2]
[388687133,1759318279261,-1673.57,0.00022465,2]
[388687134,1759318279271,-1073.96,0.00022465,2]
[388687135,1759318279280,-2511.42,0.00022465,2]
[388687136,1759318279289,-2478.39,0.00022465,2]
[388687137,1759318279298,-3357.91,0.00022465,2]
[388687138,1759318279308,-15311.58,0.00022465,2]
[388687139,1759318279317,-1437.45,0.00022465,2]
[388687140,1759318279326,-2863.59,0.00022465,2]
[388687141,1759318279335,-665.19,0.00022465,2]
[388687142,1759318279345,-6135.1,0.00022465,2]
[388687143,1759318279354,-3903.46,0.00022465,2]
[388687144,1759318279364,-15847.75,0.00022465,2]
[388687145,1759318279373,-3006.69,0.00022465,2]
[388687146,1759318279382,-500.0,0.00022465,2]
[388687147,1759318279391,-507.2,0.00022465,2]
[388687148,1759318279400,-500.0,0.00022465,2]
[388687149,1759318279409,-1204.78,0.00022465,2]
[388687150,1759318279418,-2704.17,0.00022465,2]
[388687151,1759318279427,-500.0,0.00022465,2]
[388687152,1759318279436,-562.44,0.00022465,2]
[388687153,1759318279445,-2839.39,0.00022465,2]
[388687154,1759318279455,-859.101623,0.00022465,2]
[388687155,1759318279464,-3604.11,0.00022465,2]
[388687156,1759318279473,-2573.92,0.00022465,2]
[388687157,1759318279483,-539.35,0.00022465,2]
[388687158,1759318279492,-592.98,0.00022465,2]
[388687159,1759318279502,-514.06,0.00022465,2]
[388687160,1759318279511,-3672.13,0.00022465,2]
[388687161,1759318279520,-610.79,0.00022465,2]
[388687162,1759318279530,-2285.91,0.00022465,2]
[388687163,1759318279539,-398.325065,0.00022465,2]
[388687164,1759318279548,-696.04,0.00022465,2]
[388687165,1759318279557,-975.98,0.00022465,2]
[388687166,1759318279567,-500.0,0.00022465,2]
[388687167,1759318279577,-9618.19,0.00022465,2]
[388687168,1759318279586,-29875.81,0.00022465,2]
[388687169,1759318279595,-2231.23,0.00022465,2]
[388687170,1759318279604,-500.0,0.00022465,2]
[388687171,1759318279613,-2378.61,0.00022465,2]
[388687172,1759318279623,-500.0,0.00022465,2]
[388687173,1759318279632,-500.0,0.00022465,2]
[388687174,1759318279641,-500.0,0.00022465,2]
[388687175,1759318279651,-2143.61,0.00022465,2]
[388687176,1759318279660,-1043.84,0.00022465,2]
[388687177,1759318279670,-1629.89,0.00022465,2]
[388687178,1759318279679,-5960.71,0.00022465,2]
[388687179,1759318279688,-500.0,0.00022465,2]
[388687180,1759318279698,-14569.3,0.00022465,2]
[388687181,1759318279707,-927.74,0.00022465,2]
[388687182,1759318279717,-1303.67,0.00022465,2]
[388687183,1759318279731,-1000.0,0.00022465,2]
[388687184,1759318279740,-865.22,0.00022465,2]
[388687185,1759318279750,-5788.41,0.00022465,2]
[388687186,1759318279759,-4432.83,0.00022465,2]
[388687187,1759318279769,-500.0,0.00022465,2]
[388687188,1759318279783,-500.0,0.00022465,2]
[388687189,1759318279792,-5426.3,0.00022465,2]
[388687190,1759318279801,-4020.77,0.00022465,2]
[388687191,1759318279811,-2982.5,0.00022465,2]
[388687192,1759318279822,-8042.91,0.00022465,2]
[388687193,1759318279831,-827.99,0.00022465,2]
[388687194,1759318279841,-500.0,0.00022465,2]
[388687195,1759318279853,-3397.97,0.00022465,2]
[388687196,1759318279862,-568.48,0.00022465,2]
[388687197,1759318279872,-2143.65,0.00022465,2]
[388687198,1759318279882,-500.0,0.00022465,2]
[388687199,1759318279892,-500.0,0.00022465,2]
[388687200,1759318279901,-500.0,0.00022465,2]
[388687201,1759318279910,-500.0,0.00022465,2]
[388687202,1759318279920,-500.0,0.00022465,2]
[388687203,1759318279930,-729.48,0.00022465,2]
[388687204,1759318279939,-738.01,0.00022465,2]
[388687205,1759318279950,-500.0,0.00022465,2]
[388687206,1759318279960,-651.73,0.00022465,2]
[388687207,1759318279970,-2914.92,0.00022465,2]
[388687208,1759318279979,-10131.33,0.00022465,2]
[388687209,1759318279989,-513.16,0.00022465,2]
[388687210,1759318279999,-800.18,0.00022465,2]
[388687211,1759318280010,-500.0,0.00022465,2]
[388687212,1759318280020,-2477.79,0.00022465,2]
[388687213,1759318280029,-2919.8,0.00022465,2]
[388687214,1759318280038,-5252.88,0.00022465,2]
[388687215,1759318280048,-8041.63,0.00022465,2]
[388687216,1759318280057,-2735.54,0.00022465,2]
[388687217,1759318280067,-613.12101146,0.00022465,2]
[388687218,1759318280077,-500.0,0.00022465,2]
[388687219,1759318280086,-670.24,0.00022465,2]
[388687220,1759318280096,-500.0,0.00022465,2]
[388687221,1759318280106,-3006.98,0.00022465,2]
[388687222,1759318280115,-500.0,0.00022465,2]
[388687223,1759318280125,-5377.22,0.00022465,2]
[388687224,1759318280135,-500.0,0.00022465,2]
[388687225,1759318280144,-1758.25,0.00022465,2]
[388687226,1759318280154,-594.86,0.00022465,2]
[388687227,1759318280163,-498.13758024,0.00022465,2]